bitfinex-derivatives/quotes_SOLF0:USTF0_20260218
["timestamp","ask_amount","ask_price","bid_price","bid_amount"]
[1771426693624,10.9137,82.503,82.454,3.89552981]
[1771426694924,10.9137,82.503,82.455,10.9199]
[1771426695120,6.29946108,82.52,82.437,80.78]
[1771426695121,3.73060716,82.494,82.44,6.29946108]
[1771426695925,10.9155,82.489,82.44,6.29946108]
[1771426696726,10.9142,82.499,82.441,4.0437128]
[1771426697620,10.9142,82.499,82.442,10.9215]
[1771426697822,10.9142,82.499,82.441,4.0437128]
[1771426698223,10.9142,82.499,82.45,10.9205]
[1771426699328,3.73060716,82.529,82.461,4.0437128]
[1771426699728,10.9092,82.536,82.481,4.0437128]
[1771426700031,3.73060716,82.549,82.481,4.0437128]
[1771426700220,10.9092,82.537,82.481,4.0437128]
[1771426701826,10.9092,82.537,82.485,10.9159]
[1771426703330,36.33,82.585,82.45,6.29946108]
[1771426703331,3.73060716,82.565,82.501,4.0437128]
[1771426703728,3.73060716,82.559,82.5,6.29946108]
[1771426703926,3.73060716,82.545,82.5,6.29946108]
[1771426704329,10.9083,82.543,82.5,6.29946108]
[1771426705733,10.9093,82.536,82.484,4.0437128]
[1771426705931,3.73060716,82.545,82.484,4.0437128]
[1771426706237,10.9102,82.529,82.484,4.0437128]
[1771426706436,10.9102,82.529,82.48,6.29946108]
[1771426706840,10.9102,82.529,82.481,10.9165]
[1771426707036,6.29946108,82.56,82.481,10.9165]
[1771426707037,3.73060716,82.559,82.481,4.0437128]
[1771426707340,3.73060716,82.559,82.501,4.0437128]
[1771426708532,10.9065,82.557,82.51,10.9126]
[1771426709136,10.9065,82.557,82.503,4.0437128]
[1771426709637,10.9074,82.55,82.503,4.0437128]
[1771426710736,10.9074,82.55,82.504,10.9133]
[1771426711238,10.9074,82.55,82.506,10.913]
[1771426711740,10.9074,82.55,82.507,4.0437128]
[1771426713141,10.9074,82.55,82.509,10.9126]
[1771426713542,10.9086,82.541,82.5,6.28861924]
[1771426713737,3.73060716,82.559,82.5,10.33233204]
[1771426713938,3.73060716,82.559,82.501,4.0437128]
[1771426714838,10.9076,82.548,82.501,14.9574128]
[1771426715037,3.73060716,82.559,82.501,4.0437128]
[1771426715444,3.73060716,82.559,82.48,6.28861924]
[1771426715833,3.73060716,82.535,82.48,6.28861924]
[1771426716338,3.73060716,82.535,82.48,10.33233204]
[1771426716844,10.9105,82.527,82.48,21.24883204]
[1771426717044,3.73060716,82.535,82.481,4.0437128]
[1771426717239,3.73060716,82.559,82.481,4.0437128]
[1771426718238,3.73060716,82.535,82.483,10.9161]
[1771426718837,10.9111,82.522,82.481,4.0437128]
[1771426719635,10.9101,82.53,82.483,10.9162]
[1771426721740,3.73060716,82.535,82.491,10.9151]
[1771426722241,10.9095,82.534,82.491,10.9151]
[1771426722941,10.9103,82.528,82.483,14.9599128]
[1771426723344,10.9103,82.528,82.483,4.0437128]
[1771426724039,10.9103,82.528,82.398,348.9835]
[1771426724040,3.73060716,82.535,82.466,4.0437128]
[1771426724348,3.73060716,82.533,82.466,4.0437128]
[1771426724551,3.73060716,82.531,82.481,10.9164]
[1771426724747,10.91,82.53,82.481,10.9164]
[1771426725453,10.9109,82.524,82.481,10.9164]
[1771426726044,3.67913692,82.541,82.481,3.74354526]
[1771426726343,3.67913692,82.539,82.481,3.74354526]
[1771426726543,3.67913692,82.537,82.481,3.74354526]
[1771426726745,3.67913692,82.531,82.466,3.74354526]
[1771426726946,3.67913692,82.529,82.466,3.74354526]
[1771426727145,3.67913692,82.527,82.466,3.74354526]
[1771426727347,3.67913692,82.515,82.468,10.9182]
[1771426727848,10.9125,82.511,82.468,10.9182]
[1771426728557,3.67913692,82.515,82.475,10.9173]
[1771426729257,10.913,82.507,82.466,3.74354526]
[1771426729451,10.913,82.507,82.451,324.1233632]
[1771426729651,10.9137,82.502,82.462,10.9189]
[1771426730456,10.9137,82.502,82.452,3.74354526]
[1771426731555,3.67913692,82.506,82.451,324.1233632]
[1771426731757,3.67913692,82.504,82.44,6.28861924]
[1771426731952,10.9156,82.488,82.442,10.9216]
[1771426732258,10.9156,82.488,82.443,3.74354526]
[1771426732653,10.9164,82.482,82.443,3.74354526]
[1771426732856,3.67913692,82.502,82.443,3.74354526]
[1771426733152,10.09180949,82.501,82.444,3.74354526]
[1771426733352,3.67913692,82.502,82.453,14.66364526]
[1771426733856,10.09120535,82.501,82.453,14.66364526]
[1771426734162,10.08921248,82.5,82.453,14.66364526]
[1771426734457,3.67913692,82.502,82.453,14.66364526]
[1771426734646,10.915,82.493,82.453,14.66364526]
[1771426734849,3.67913692,82.502,82.441,80.3]
[1771426735055,3.67913692,82.499,82.442,3.74354526]
[1771426735254,3.67913692,82.497,82.442,3.74354526]
[1771426735452,10.917,82.478,82.442,3.74354526]
[1771426735658,3.67913692,82.495,82.442,3.74354526]
[1771426735856,3.67913692,82.493,82.431,80.32]
[1771426736052,3.67913692,82.491,82.431,80.32]
[1771426736252,3.67913692,82.489,82.431,80.32]
[1771426736653,10.918,82.47,82.431,80.32]
[1771426736853,10.918,82.47,82.427,3.74354526]
[1771426738053,10.9171,82.477,82.427,3.74354526]
[1771426739753,10.9171,82.477,82.435,10.9224]
[1771426740054,10.9171,82.477,82.435,14.99261909]
[1771426740252,10.9171,82.477,82.436,4.07021909]
[1771426740457,6.28861924,82.52,82.44,6.28861924]
[1771426740651,3.94818998,82.512,82.441,4.07021909]
[1771426740851,3.94818998,82.51,82.443,4.07021909]
[1771426741053,3.94818998,82.499,82.437,80.42]
[1771426741350,6.28861924,82.5,82.428,4.07021909]
[1771426741351,3.94818998,82.497,82.428,84.47021909]
[1771426741556,3.94818998,82.495,82.428,84.47021909]
[1771426741756,3.94818998,82.493,82.428,84.47021909]
[1771426741952,3.94818998,82.493,82.428,4.07021909]
[1771426742157,10.9178,82.472,82.431,10.923]
[1771426742458,3.94818998,82.493,82.428,4.07021909]
[1771426742657,10.9174,82.474,82.438,10.9221]
[1771426744953,10.9174,82.474,82.431,10.923]
[1771426745160,10.9183,82.468,82.428,4.07021909]
[1771426745463,3.94818998,82.479,82.428,4.07021909]
[1771426745664,3.94818998,82.479,82.412,4.07021909]
[1771426746253,10.9208,82.448,82.412,4.07021909]
[1771426747059,10.9208,82.448,82.407,10.9262]
[1771426747659,10.9196,82.458,82.413,10.9254]
[1771426747860,3.94818998,82.46,82.396,4.07021909]
[1771426748464,10.9194,82.459,82.42,4.07021909]
[1771426748666,3.94818998,82.481,82.42,4.07021909]
[1771426748960,3.94818998,82.469,82.409,10.926]
[1771426749164,3.94818998,82.469,82.403,4.07021909]
[1771426750061,10.9221,82.439,82.403,4.07021909]
[1771426750259,3.94818998,82.451,82.39,6.28861924]
[1771426750462,3.94818998,82.449,82.387,4.07021909]
[1771426750661,10.923,82.432,82.391,14.99851909]
[1771426750870,3.94818998,82.449,82.391,14.99851909]
[1771426751055,3.94818998,82.449,82.395,4.07021909]
[1771426751361,3.94818998,82.469,82.395,4.07021909]
[1771426751668,10.9186,82.465,82.418,4.07021909]
[1771426752768,10.9186,82.465,82.421,10.9244]
[1771426753164,10.9177,82.472,82.422,4.07021909]
[1771426753367,10.9177,82.472,82.423,14.99431909]
[1771426753568,3.94818998,82.488,82.423,14.99431909]
[1771426754159,3.94818998,82.488,82.423,4.07021909]
[1771426754369,21.8266,82.506,82.423,4.07021909]
[1771426754370,3.94818998,82.486,82.423,4.07021909]
[1771426755058,10.919,82.463,82.416,10.925]
[1771426755261,10.919,82.463,82.421,10.9243]
[1771426755963,10.919,82.463,82.421,14.9465285]
[1771426758270,21.8266,82.506,82.429,4.0222285]
[1771426758271,10.9174,82.474,82.429,4.0222285]
[1771426758970,10.9174,82.474,82.433,4.0222285]
[1771426759768,3.72596231,82.501,82.446,4.0222285]
[1771426760072,3.72596231,82.499,82.431,4.0222285]
[1771426760270,10.9177,82.472,82.424,10.924]
[1771426760467,3.72596231,82.471,82.412,4.0222285]
[1771426760973,10.9196,82.458,82.412,4.0222285]
[1771426762165,112.71,82.498,82.41,6.28861924]
[1771426762166,36.33,82.498,82.41,6.28861924]
[1771426762370,3.72596231,82.512,82.451,4.0222285]
[1771426762564,3.72596231,82.51,82.451,4.0222285]
[1771426763171,10.9147,82.495,82.452,10.9202]
[1771426763366,3.72596231,82.51,82.451,4.0222285]
[1771426764468,3.72596231,82.539,82.467,4.0222285]
[1771426764671,3.72596231,82.537,82.47,6.28861924]
[1771426764873,10.9111,82.522,82.471,10.9177]
[1771426765064,3.72596231,82.535,82.472,4.0222285]
[1771426765269,6.28861924,82.55,82.472,4.0222285]
[1771426765270,3.72596231,82.533,82.472,4.0222285]
[1771426765565,3.72596231,82.531,82.472,4.0222285]
[1771426765766,10.08201101,82.53,82.472,4.0222285]
[1771426766085,3.72596231,82.531,82.472,4.0222285]
[1771426766672,3.72596231,82.548,82.494,4.0222285]
[1771426766873,6.28861924,82.58,82.494,4.0222285]
[1771426767080,3.72596231,82.564,82.494,4.0222285]
[1771426767377,6.28861924,82.58,82.49,6.28861924]
[1771426767378,3.72596231,82.56,82.5,4.0222285]
[1771426767577,3.72596231,82.558,82.5,4.0222285]
[1771426767776,3.72596231,82.556,82.5,4.0222285]
[1771426767977,3.72596231,82.554,82.484,4.0222285]
[1771426768179,3.72596231,82.552,82.49,10.31084774]
[1771426768374,10.08108195,82.551,82.491,4.0222285]
[1771426768577,3.72596231,82.549,82.491,4.0222285]
[1771426769077,3.72596231,82.565,82.515,10.9119]
[1771426769373,3.72596231,82.565,82.49,6.28861924]
[1771426769569,6.28861924,82.57,82.49,6.28861924]
[1771426769570,10.907,82.553,82.504,10.9134]
[1771426769779,3.72596231,82.563,82.504,10.9134]
[1771426770078,3.72596231,82.561,82.504,10.9134]
[1771426770275,10.07555227,82.56,82.504,10.9134]
[1771426770476,14.63196231,82.561,82.504,10.9134]
[1771426770677,3.72596231,82.558,82.49,6.28861924]
[1771426770871,3.72596231,82.558,82.429,12.13]
[1771426770872,3.72596231,82.549,82.474,4.0222285]
[1771426771077,3.72596231,82.547,82.474,4.0222285]
[1771426771272,14.63586231,82.531,82.475,10.9172]
[1771426771477,3.72596231,82.53,82.475,10.9172]
[1771426771883,3.72596231,82.527,82.466,10.9184]
[1771426772385,3.72596231,82.527,82.474,10.9174]
[1771426773085,3.72596231,82.52,82.465,10.9185]
[1771426773282,3.72596231,82.52,82.461,4.0222285]
[1771426773483,3.72596231,82.518,82.441,4.0222285]
[1771426773872,10.9139,82.501,82.455,10.9198]
[1771426774379,3.72596231,82.518,82.455,10.9198]
[1771426774682,6.2954325,82.52,82.455,10.9198]
[1771426774683,3.72596231,82.509,82.455,10.9198]
[1771426775279,3.72596231,82.509,82.463,10.9188]
[1771426776479,3.72596231,82.507,82.44,6.2954325]
[1771426776678,3.72596231,82.507,82.438,4.0222285]
[1771426776885,3.72596231,82.479,82.427,10.9236]
[1771426777084,3.72596231,82.479,82.421,4.0222285]
[1771426777481,3.72596231,82.479,82.431,4.0222285]
[1771426778477,3.72596231,82.479,82.434,10.9227]
[1771426778681,3.72596231,82.495,82.434,4.0222285]
[1771426778882,6.2954325,82.51,82.434,4.0222285]
[1771426779491,3.72596231,82.509,82.434,4.0222285]
[1771426779690,10.9135,82.504,82.45,10.9206]
[1771426780390,10.9135,82.504,82.451,4.0222285]
[1771426780691,3.72596231,82.509,82.457,4.0222285]
[1771426781788,10.9139,82.501,82.457,4.0222285]
[1771426781988,3.72596231,82.509,82.441,4.0222285]
[1771426782292,10.9145,82.497,82.441,4.0222285]
[1771426782490,3.72596231,82.509,82.45,4.0222285]
[1771426782681,3.72596231,82.509,82.451,4.0222285]
[1771426783083,10.9118,82.517,82.466,14.9406285]
[1771426783795,14.63776231,82.517,82.466,14.9406285]
[1771426784594,14.63836231,82.512,82.466,4.0222285]
[1771426785098,3.72596231,82.512,82.47,10.9179]
[1771426785788,3.72596231,82.512,82.46,10.9191]
[1771426785989,3.80018336,82.509,82.449,3.72487667]
[1771426786193,3.80018336,82.507,82.434,3.72487667]
[1771426786394,3.80018336,82.476,82.426,10.9238]
[1771426786896,10.9178,82.472,82.418,3.72487667]
[1771426787188,3.80018336,82.476,82.418,3.72487667]
[1771426788792,10.9174,82.474,82.43,10.9231]
[1771426789495,10.9165,82.482,82.439,10.922]
[1771426790196,3.80018336,82.481,82.411,3.72487667]
[1771426790990,10.9169,82.478,82.411,3.72487667]
[1771426791498,3.80018336,82.481,82.411,3.72487667]
[1771426791797,3.80018336,82.481,82.432,3.72487667]
[1771426792102,3.80018336,82.508,82.432,3.72487667]
[1771426792405,3.80018336,82.506,82.432,3.72487667]
[1771426792592,6.2954325,82.51,82.455,3.72487667]
[1771426792788,3.80018336,82.522,82.455,3.72487667]
[1771426793003,3.80018336,82.52,82.455,3.72487667]
[1771426793201,10.9126,82.511,82.455,3.72487667]
[1771426793499,3.80018336,82.52,82.455,3.72487667]
[1771426794296,3.80018336,82.518,82.455,3.72487667]
[1771426794499,76.36,82.533,82.439,3.72487667]
[1771426794500,3.80018336,82.491,82.439,3.72487667]
[1771426795302,3.80018336,82.491,82.448,10.9208]
[1771426797097,3.80018336,82.517,82.45,6.2954325]
[1771426799007,10.9097,82.533,82.49,10.9152]
[1771426799407,10.9097,82.533,82.481,3.7095465]
[1771426799408,3.67318724,82.538,82.481,3.7095465]
[1771426799601,3.67318724,82.534,82.463,3.7095465]
[1771426799802,3.67318724,82.529,82.463,3.7095465]
[1771426799998,3.67318724,82.527,82.463,3.7095465]
[1771426800201,9.78716491,82.526,82.463,3.7095465]
[1771426800402,3.67318724,82.534,82.471,3.7095465]
[1771426800605,22.36949414,82.585,82.45,6.2954325]
[1771426800606,10.9118,82.517,82.469,10.918]
[1771426800807,3.67318724,82.516,82.469,10.918]
[1771426801110,3.67318724,82.516,82.454,3.7095465]
[1771426801298,3.67318724,82.516,82.478,10.9168]
[1771426801498,3.67318724,82.516,82.454,3.7095465]
[1771426801703,3.67318724,82.509,82.431,3.7095465]
[1771426801909,3.67318724,82.521,82.451,3.7095465]
[1771426802305,3.67318724,82.521,82.416,169.9455]
[1771426802306,3.67318724,82.535,82.488,10.9155]
[1771426803110,3.67318724,82.535,82.47,6.2954325]
[1771426803111,3.67318724,82.529,82.452,3.7095465]
[1771426803403,6.2954325,82.53,82.452,3.7095465]
[1771426803404,3.67318724,82.527,82.452,3.7095465]
[1771426803611,3.67318724,82.527,82.469,10.918]
[1771426804204,3.67318724,82.525,82.479,10.9166]
[1771426804804,3.67318724,82.519,82.451,3.7095465]
[1771426805210,3.67318724,82.517,82.471,10.9177]
[1771426805702,3.67318724,82.517,82.464,10.9187]
[1771426806007,3.67318724,82.515,82.431,3.7095465]
[1771426806211,3.67318724,82.513,82.431,3.7095465]
[1771426806411,3.67318724,82.499,82.431,3.7095465]
[1771426806602,3.67318724,82.497,82.431,3.7095465]
[1771426807715,3.67318724,82.497,82.441,3.7095465]
[1771426808008,3.67318724,82.495,82.455,10.9198]
[1771426808206,3.67318724,82.495,82.424,3.7095465]
[1771426808515,3.67318724,82.489,82.454,10.9199]
[1771426808814,3.67318724,82.489,82.424,3.7095465]
[1771426809813,3.67318724,82.489,82.447,10.9209]
[1771426810014,6.2954325,82.5,82.429,3.7095465]
[1771426811006,6.2954325,82.5,82.431,3.7095465]
[1771426811611,36.33,82.537,82.41,78.02]
[1771426811612,10.9121,82.514,82.449,3.7095465]
[1771426811810,9.98369733,82.513,82.449,3.7095465]
[1771426812111,6.2954325,82.54,82.465,3.7095465]
[1771426812312,0.97152256,82.537,82.465,3.7095465]
[1771426812512,0.97152256,82.535,82.465,3.7095465]
[1771426812712,0.98263484,82.533,82.465,3.7095465]
[1771426812911,10.97040477,82.532,82.465,3.7095465]
[1771426813117,9.98776993,82.531,82.465,3.7095465]
[1771426813312,9.98776993,82.53,82.465,3.7095465]
[1771426813512,6.2954325,82.54,82.465,3.7095465]
[1771426813815,0.98263484,82.519,82.448,3.7095465]
[1771426814211,0.98263484,82.519,82.474,10.9173]
[1771426814411,0.98263484,82.539,82.463,3.7095465]
[1771426814612,1.00710437,82.537,82.463,3.7095465]
[1771426814809,1.00555791,82.535,82.463,3.7095465]
[1771426815005,1.00555791,82.533,82.463,3.7095465]
[1771426815204,10.9103,82.528,82.481,3.80016772]
[1771426815412,1.00555791,82.546,82.481,3.80016772]
[1771426815611,1.00536225,82.544,82.481,3.80016772]
[1771426815812,1.00536225,82.542,82.481,3.80016772]
[1771426816011,1.00536225,82.536,82.485,10.9158]
[1771426816209,10.00885935,82.535,82.485,10.9158]
[1771426816405,10.00885935,82.534,82.485,10.9158]
[1771426816611,6.2954325,82.55,82.481,3.80016772]
[1771426816814,10.01001766,82.549,82.481,3.80016772]
[1771426817118,10.01001766,82.548,82.481,3.80016772]
[1771426817417,10.01001766,82.547,82.481,3.80016772]
[1771426817612,10.01001766,82.546,82.481,3.80016772]
[1771426817818,10.01001766,82.545,82.499,10.9141]
[1771426818115,10.01001766,82.544,82.499,10.9141]
[1771426818315,10.01001766,82.543,82.499,10.9141]
[1771426818618,10.01001766,82.542,82.508,10.9128]
[1771426818818,1.04520751,82.569,82.509,3.80016772]
[1771426819006,1.04520751,82.567,82.509,3.80016772]
[1771426819206,1.04520751,82.565,82.509,3.80016772]
[1771426819412,1.04520751,82.563,82.481,3.80016772]
[1771426819619,1.04520751,82.547,82.481,3.80016772]
[1771426820616,1.05894028,82.565,82.5,3.80016772]
[1771426820818,10.00024044,82.564,82.5,3.80016772]
[1771426821018,6.2954325,82.57,82.5,3.80016772]
[1771426821019,1.05894028,82.589,82.501,3.80016772]
[1771426821218,1.05894028,82.587,82.501,3.80016772]
[1771426821417,1.05894028,82.587,82.527,3.80016772]
[1771426821418,10.00130931,82.586,82.527,3.80016772]
[1771426821620,10.00130931,82.585,82.527,3.80016772]
[1771426821815,1.05894028,82.583,82.527,3.80016772]
[1771426822020,10.00130931,82.582,82.527,3.80016772]
[1771426822219,1.05894028,82.583,82.527,3.80016772]
[1771426822417,11.96034028,82.595,82.549,10.9074]
[1771426822624,0.99482478,82.611,82.542,3.80016772]
[1771426822814,0.99482478,82.609,82.542,3.80016772]
[1771426823011,10.98688053,82.608,82.542,3.80016772]
[1771426823220,0.99482478,82.606,82.542,3.80016772]
[1771426824818,14.9301439,82.647,82.505,21.8266]
[1771426824819,10.898,82.621,82.567,3.80016772]
[1771426825119,0.94385055,82.621,82.55,10.09560022]
[1771426825423,0.94385055,82.621,82.551,3.80016772]
[1771426825624,0.94385055,82.621,82.574,10.9041]
[1771426825822,17.1923325,82.63,82.575,3.80016772]
[1771426826018,10.8969,82.63,82.575,3.80016772]
[1771426826517,10.8969,82.63,82.579,10.9034]
[1771426826714,0.9399569,82.621,82.551,3.80016772]
[1771426827215,0.9399569,82.619,82.551,3.80016772]
[1771426827411,10.8985,82.618,82.566,10.9051]
[1771426828220,0.9399569,82.619,82.558,10.9062]
[1771426828622,10.8995,82.61,82.558,10.9062]
[1771426828816,0.9399569,82.619,82.551,3.80016772]
[1771426829216,0.83926251,82.638,82.571,3.80016772]
[1771426829414,21.7793,82.685,82.57,6.2954325]
[1771426829415,0.83926251,82.659,82.595,3.80016772]
[1771426829823,10.8922,82.665,82.595,3.80016772]
[1771426830023,0.83926251,82.7,82.62,3.80016772]
[1771426830226,0.83926251,82.689,82.62,3.80016772]
[1771426830426,0.83926251,82.687,82.62,3.80016772]
[1771426830625,0.81030271,82.685,82.62,3.80016772]
[1771426830816,10.8928,82.661,82.603,3.80016772]
[1771426831020,6.2954325,82.65,82.584,3.80016772]
[1771426831220,0.81030271,82.649,82.584,3.80016772]
[1771426831421,0.81030271,82.629,82.565,3.80016772]
[1771426831629,0.81030271,82.639,82.571,3.80016772]
[1771426831926,10.8959,82.637,82.584,10.9027]
[1771426832123,0.81030271,82.639,82.571,3.80016772]
[1771426832626,0.81030271,82.639,82.575,10.9039]
[1771426832826,6.2954325,82.65,82.571,3.80016772]
[1771426832827,0.79420652,82.629,82.571,3.80016772]
[1771426833226,0.79420652,82.629,82.553,3.80016772]
[1771426833526,0.79420652,82.609,82.553,3.80016772]
[1771426833821,0.79420652,82.609,82.53,6.2954325]
[1771426833822,0.79420652,82.609,82.535,3.80016772]
[1771426834338,10.9023,82.589,82.538,3.80016772]
[1771426835129,10.9023,82.589,82.54,3.80016772]
[1771426835521,0.78600384,82.63,82.54,3.80016772]
[1771426835723,7.0703223,82.63,82.567,3.80016772]
[1771426835921,10.8992,82.612,82.567,3.80016772]
[1771426836120,0.78600384,82.629,82.567,3.80016772]
[1771426837433,7.08864387,82.61,82.547,3.80016772]
[1771426838333,10.9011,82.598,82.549,10.9074]
[1771426838533,10.9011,82.598,82.55,3.80016772]
[1771426839138,10.9,82.606,82.553,3.80016772]
[1771426839634,10.9,82.606,82.556,3.80016772]
[1771426840236,10.9,82.606,82.558,3.80016772]
[1771426840838,10.901,82.598,82.558,3.80016772]
[1771426841233,10.9001,82.606,82.56,10.906]
[1771426841439,0.73480865,82.629,82.561,3.80016772]
[1771426841834,0.73480865,82.629,82.55,6.28431846]
[1771426842040,6.28431846,82.64,82.574,3.80016772]
[1771426842742,7.07065839,82.64,82.575,3.80016772]
[1771426842943,0.78633993,82.639,82.575,3.80016772]
[1771426843134,0.78633993,82.657,82.581,3.80016772]
[1771426843936,0.78633993,82.635,82.575,10.9039]
[1771426844140,6.28431846,82.63,82.575,10.9039]
[1771426844340,0.78633993,82.635,82.575,10.9039]
[1771426844744,0.77426003,82.657,82.584,3.80016772]
[1771426845249,76.26,82.67,82.602,3.94164093]
[1771426845453,0.77137619,82.674,82.602,3.94164093]
[1771426846546,10.8938,82.653,82.602,3.94164093]
[1771426847540,10.8948,82.645,82.602,14.84204093]
[1771426847744,0.76612922,82.639,82.563,3.94164093]
[1771426847950,0.76612922,82.639,82.587,10.9023]
[1771426848242,6.28431846,82.65,82.588,3.94164093]
[1771426848648,6.28431846,82.65,82.6,3.94164093]
[1771426849243,10.8943,82.649,82.6,3.94164093]
[1771426849644,0.76612922,82.659,82.6,3.94164093]
[1771426850655,10.8953,82.642,82.6,3.94164093]
[1771426851147,0.76612922,82.659,82.58,6.28431846]
[1771426851148,0.76259046,82.669,82.605,3.94164093]
[1771426852544,6.28431846,82.65,82.564,3.94164093]
[1771426852743,6.28431846,82.66,82.581,3.94164093]
[1771426853043,10.8925,82.663,82.613,10.899]
[1771426853240,10.8925,82.663,82.614,3.94164093]
[1771426853451,0.74993453,82.679,82.614,3.94164093]
[1771426853652,10.8924,82.664,82.614,3.94164093]
[1771426854245,10.8911,82.674,82.619,3.94164093]
[1771426854442,0.74993453,82.679,82.619,3.94164093]
[1771426854948,0.54935474,82.659,82.602,3.94164093]
[1771426856744,0.50199981,82.678,82.602,3.94164093]
[1771426856952,10.8926,82.662,82.607,10.8998]
[1771426857148,10.8926,82.662,82.608,3.94164093]
[1771426857851,6.28431846,82.67,82.611,3.94164093]
[1771426857852,10.8916,82.67,82.611,3.94164093]
[1771426858053,0.50199981,82.678,82.611,3.94164093]
[1771426858253,0.50199981,82.678,82.621,3.86554066]
[1771426858457,0.49998569,82.699,82.621,3.86554066]
[1771426858654,0.54050428,82.697,82.621,3.86554066]
[1771426858854,6.28431846,82.68,82.621,3.86554066]
[1771426859351,10.893,82.659,82.621,3.86554066]
[1771426859659,0.54050428,82.659,82.587,3.86554066]
[1771426859849,0.54050428,82.657,82.587,3.86554066]
[1771426860156,6.28431846,82.66,82.587,3.86554066]
[1771426860157,10.8978,82.623,82.587,3.86554066]
[1771426860354,0.54050428,82.653,82.587,3.86554066]
[1771426860550,0.54050428,82.639,82.569,3.86554066]
[1771426860755,9.95826706,82.638,82.585,14.76814066]
[1771426860960,0.50444345,82.674,82.601,3.86554066]
[1771426861247,22.3861256,82.71,82.601,3.86554066]
[1771426861248,0.50444345,82.659,82.601,3.86554066]
[1771426861449,10.8953,82.642,82.601,3.86554066]
[1771426861659,0.50444345,82.659,82.601,3.86554066]
[1771426862155,6.78876191,82.65,82.571,3.86554066]
[1771426862356,0.50444345,82.649,82.571,3.86554066]
[1771426862744,10.8974,82.626,82.573,3.86554066]
[1771426863155,6.28431846,82.63,82.573,3.86554066]
[1771426863550,10.8983,82.619,82.573,3.86554066]
[1771426864243,10.8983,82.619,82.55,6.28431846]
[1771426864244,10.8971,82.628,82.575,3.86554066]
[1771426864454,7.22147374,82.65,82.575,3.86554066]
[1771426864848,1.0278358,82.668,82.591,3.86554066]
[1771426865851,10.8938,82.653,82.591,3.86554066]
[1771426866851,10.8926,82.662,82.605,3.86554066]
[1771426867054,0.98168559,82.686,82.611,3.86554066]
[1771426867259,0.98168559,82.685,82.611,3.86554066]
[1771426867562,10.8914,82.672,82.613,3.86554066]
[1771426867761,0.98168559,82.685,82.613,3.86554066]
[1771426867964,10.8911,82.673,82.62,3.86554066]
[1771426869562,10.8922,82.665,82.62,3.86554066]
[1771426870172,10.8912,82.673,82.621,3.86554066]
[1771426870760,0.98296477,82.669,82.601,3.86554066]
[1771426870961,0.98296477,82.668,82.601,3.86554066]
[1771426871152,10.8953,82.642,82.601,3.86554066]
[1771426871866,6.28431846,82.65,82.601,3.86554066]
[1771426872653,10.895,82.644,82.601,3.86554066]
[1771426872858,9.98330746,82.643,82.601,3.86554066]
[1771426873160,6.28431846,82.65,82.601,3.86554066]
[1771426873366,9.98437541,82.649,82.601,3.86554066]
[1771426873664,9.98437541,82.648,82.601,3.86554066]
[1771426873864,9.98437541,82.647,82.601,3.86554066]
[1771426874065,9.98437541,82.646,82.601,3.86554066]
[1771426874263,6.28431846,82.66,82.601,3.86554066]
[1771426874465,1.03884984,82.658,82.601,3.86554066]
[1771426874665,1.04523199,82.656,82.601,3.86554066]
[1771426874866,11.03877257,82.655,82.601,3.86554066]
[1771426875064,11.03877257,82.654,82.601,3.86554066]
[1771426875266,10.8954,82.641,82.601,3.86554066]
[1771426875961,10.8943,82.649,82.601,3.86554066]
[1771426876264,14.81626271,82.678,82.601,3.86554066]
[1771426876265,6.28431846,82.67,82.601,3.86554066]
[1771426876459,9.98704002,82.669,82.601,3.86554066]
[1771426876663,10.8943,82.65,82.609,10.8994]
[1771426877064,10.8943,82.65,82.601,3.86554066]
[1771426877262,10.8943,82.65,82.604,10.9002]
[1771426877661,11.18724092,82.689,82.611,3.75099436]
[1771426877963,191.0786,82.726,82.602,3.75099436]
[1771426877964,1.05384239,82.669,82.602,3.75099436]
[1771426878162,10.8936,82.654,82.602,3.75099436]
[1771426878363,1.05384239,82.669,82.602,3.75099436]
[1771426878565,6.28431846,82.67,82.602,3.75099436]
[1771426878566,1.05384239,82.667,82.602,3.75099436]
[1771426878865,9.98694615,82.666,82.602,3.75099436]
[1771426879169,9.98694615,82.665,82.602,3.75099436]
[1771426879369,9.98694615,82.664,82.602,3.75099436]
[1771426879562,9.98694615,82.663,82.602,3.75099436]
[1771426879769,6.28431846,82.67,82.565,21.8106]
[1771426879770,1.152442,82.661,82.585,3.75099436]
[1771426880063,1.152442,82.659,82.585,3.75099436]
[1771426880271,9.98694615,82.658,82.601,10.9005]
[1771426880566,9.98694615,82.657,82.601,10.9005]
[1771426880768,10.8945,82.648,82.607,10.8997]
[1771426881567,1.24886788,82.678,82.601,3.75099436]